bitfinex/quotes_SOLUSD_20240626
["timestamp","ask_amount","ask_price","bid_price","bid_amount"]
[1719365188049,7.2511,137.91,137.87,16.6486]
[1719365188552,7.2518,137.9,137.87,16.6486]
[1719365190439,7.253,137.88,137.85,6.5681]
[1719365190741,18.1271,137.92,137.85,6.5681]
[1719365190742,7.2522,137.89,137.85,6.5681]
[1719365191510,7.2528,137.88,137.85,6.5681]
[1719365191811,7.2533,137.87,137.85,6.5681]
[1719365192550,7.2537,137.86,137.85,6.5681]
[1719365193756,7.2533,137.87,137.85,6.5681]
[1719365194341,18.1259,137.93,137.85,6.5681]
[1719365194648,7.2525,137.89,137.85,6.5681]
[1719365195775,7.2516,137.9,137.85,6.5681]
[1719365196320,7.2521,137.89,137.85,6.5681]
[1719365196847,18.1282,137.91,137.85,6.5681]
[1719365197219,0.17,137.9,137.85,6.5681]
[1719365197441,20.17,137.9,137.85,6.5681]
[1719365197649,7.254,137.86,137.83,15.4418]
[1719365197854,7.2544,137.85,137.83,15.4418]
[1719365198023,7.2538,137.86,137.83,15.4418]
[1719365198450,7.2534,137.87,137.83,15.4418]
[1719365199163,7.2538,137.86,137.83,15.4418]
[1719365199835,7.2533,137.87,137.83,15.4418]
[1719365207076,18.1272,137.92,137.83,15.4418]
[1719365207244,18.1272,137.92,137.84,0.17]
[1719365207567,20.0,137.91,137.84,0.17]
[1719365207865,7.2521,137.89,137.84,0.17]
[1719365209347,7.2527,137.88,137.84,0.17]
[1719365209543,18.1293,137.9,137.83,68.5318]
[1719365209739,7.2533,137.87,137.83,68.5318]
[1719365210073,7.2528,137.88,137.83,68.5318]
[1719365210374,7.2534,137.87,137.83,68.5318]
[1719365212968,7.2524,137.89,137.83,75.7869]
[1719365213146,7.2524,137.89,137.84,0.17]
[1719365213747,7.2524,137.89,137.84,7.4246]
[1719365214367,7.2524,137.89,137.84,0.17]
[1719365214580,7.2527,137.88,137.84,0.17]
[1719365214949,18.1281,137.91,137.83,68.5318]
[1719365215148,7.2533,137.87,137.83,15.4418]
[1719365218310,18.1281,137.91,137.83,22.6969]
[1719365218569,7.2517,137.9,137.84,53.26]
[1719365218757,7.2512,137.91,137.85,7.4239]
[1719365218966,7.2507,137.92,137.86,7.4237]
[1719365219156,7.2503,137.93,137.87,66.6895]
[1719365219358,7.2503,137.93,137.89,16.4738]
[1719365221383,7.2506,137.92,137.89,16.4738]
[1719365222376,7.2501,137.93,137.89,16.4738]
[1719365223167,7.2521,137.89,137.87,6.3463]
[1719365223358,18.1253,137.93,137.87,6.3463]
[1719365223763,7.2522,137.89,137.87,6.3463]
[1719365225361,7.2515,137.91,137.87,6.3463]
[1719365226971,7.2517,137.9,137.87,6.3463]
[1719365230565,7.2513,137.91,137.87,6.3463]
[1719365231977,7.2521,137.9,137.85,16.0013]
[1719365232184,18.1253,137.93,137.85,16.0013]
[1719365232387,7.2537,137.86,137.85,16.0013]
[1719365232957,7.2537,137.86,137.84,6.3871]
[1719365233266,7.2539,137.86,137.84,6.3871]
[1719365233464,7.2543,137.85,137.81,21.9975]
[1719365233777,7.2538,137.86,137.81,21.9975]
[1719365233953,63.2973,137.92,137.81,40.1377]
[1719365234264,7.2536,137.87,137.81,47.3936]
[1719365234473,7.2538,137.86,137.81,21.9975]
[1719365234863,7.2533,137.87,137.81,29.2537]
[1719365235755,7.2523,137.89,137.83,53.09]
[1719365236076,16.161,137.94,137.86,18.1339]
[1719365236274,7.2507,137.92,137.86,25.3875]
[1719365236861,7.2511,137.91,137.86,18.1339]
[1719365237977,7.2517,137.9,137.85,7.2541]
[1719365238169,7.2517,137.9,137.84,7.4246]
[1719365238874,7.2506,137.92,137.86,69.7128]
[1719365239058,7.2501,137.93,137.87,7.4231]
[1719365239756,7.2496,137.94,137.88,7.2525]
[1719365239964,46.69881662,137.97,137.9,6.1068]
[1719365239965,20.16891662,137.97,137.9,6.1068]
[1719365240273,7.251074,137.97,137.93,7.25]
[1719365240586,7.2474,137.98,137.93,7.25]
[1719365240806,7.2474,137.98,137.92,60.3404]
[1719365241162,255.2,138.0,137.93,7.42]
[1719365241163,7.247,137.99,137.93,7.42]
[1719365241383,262.4464,138.0,137.94,7.2493]
[1719365241692,255.2,138.0,137.95,66.7906]
[1719365243167,255.2,138.0,137.95,6.2817]
[1719365243168,7.2474,137.98,137.95,6.2817]
[1719365243385,7.248,137.97,137.95,6.2817]
[1719365244285,7.2475,137.98,137.95,6.2817]
[1719365245768,7.2488,137.96,137.92,59.6154]
[1719365246084,7.2485,137.96,137.92,59.6154]
[1719365247691,7.248,137.97,137.92,59.6154]
[1719365249765,273.3169,138.0,137.92,59.6154]
[1719365249766,273.3169,138.0,137.92,6.5254]
[1719365249992,7.25,137.93,137.92,6.5254]
[1719365250172,18.119,137.98,137.92,6.5254]
[1719365250374,0.17,137.97,137.92,6.5254]
[1719365250590,7.2496,137.94,137.92,6.5254]
[1719365250964,0.17,137.97,137.88,22.7554]
[1719365250965,18.1214,137.96,137.88,22.7554]
[1719365251170,7.251,137.92,137.88,22.7554]
[1719365251383,7.2516,137.91,137.88,22.7554]
[1719365251705,7.2518,137.9,137.88,22.7554]
[1719365252404,18.1242,137.94,137.88,22.7554]
[1719365252602,7.2513,137.91,137.88,22.7554]
[1719365252810,7.2507,137.92,137.88,22.7554]
[1719365253315,7.2496,137.94,137.88,30.008]
[1719365254720,18.2907,137.97,137.88,22.7554]
[1719365254721,7.2502,137.93,137.88,22.7554]
[1719365256207,18.1227,137.95,137.88,22.7554]
[1719365256405,7.2515,137.91,137.88,22.7554]
[1719365256591,18.1227,137.95,137.88,22.7554]
[1719365257099,7.2503,137.93,137.88,22.7554]
[1719365257302,7.2507,137.92,137.88,22.7554]
[1719365258010,7.2511,137.91,137.88,22.7554]
[1719365258821,7.2518,137.9,137.88,22.7554]
[1719365260217,7.2518,137.9,137.88,6.3826]
[1719365260397,18.1227,137.95,137.85,16.4514]
[1719365260398,7.253,137.88,137.85,16.4514]
[1719365261595,7.2536,137.87,137.85,16.4514]
[1719365262000,7.2528,137.88,137.85,16.4514]
[1719365266034,18.128,137.91,137.85,16.4514]
[1719365266035,7.2522,137.89,137.85,16.4514]
[1719365266531,7.2526,137.88,137.85,16.4514]
[1719365269917,18.128,137.91,137.85,16.4514]
[1719365270119,7.2537,137.86,137.85,16.4514]
[1719365271917,7.2533,137.87,137.85,16.4514]
[1719365274124,7.2533,137.87,137.84,6.3968]
[1719365276936,18.128,137.91,137.81,6.5579]
[1719365276937,7.2553,137.83,137.81,6.5579]
[1719365277120,36.2595,137.9,137.81,6.5579]
[1719365277121,7.2549,137.84,137.81,6.5579]
[1719365279739,7.2554,137.83,137.81,6.5579]
[1719365283145,7.2558,137.82,137.79,16.6351]
[1719365283441,2.579,137.88,137.77,0.6941667]
[1719365283442,7.2574,137.79,137.77,0.6941667]
[1719365283742,7.2579,137.78,137.77,0.6941667]
[1719365284748,7.2575,137.79,137.77,0.6941667]
[1719365285441,25.38627426,137.86,137.77,0.6941667]
[1719365285650,7.2563,137.82,137.77,0.6941667]
[1719365286018,7.2565,137.81,137.77,0.6941667]
[1719365286339,7.2574,137.79,137.77,0.6941667]
[1719365287121,7.2571,137.8,137.77,0.6941667]
[1719365288948,18.1397,137.82,137.77,0.6941667]
[1719365289122,7.2576,137.79,137.77,0.6941667]
[1719365290161,7.257,137.8,137.77,0.6941667]
[1719365293547,18.1397,137.82,137.77,0.6941667]
[1719365293757,7.2579,137.78,137.77,0.6941667]
[1719365296247,7.4279,137.78,137.77,0.6941667]
[1719365301781,52.4279,137.78,137.77,0.6941667]
[1719365302065,52.5979,137.78,137.77,0.6941667]
[1719365302557,58.04562395,137.78,137.77,6.67e-05]
[1719365302863,7.2611,137.72,137.7,21.2487]
[1719365303565,59.26820756,137.77,137.66,21.4649]
[1719365303743,7.2623,137.7,137.66,21.4649]
[1719365304448,7.2617,137.71,137.66,21.4649]
[1719365305368,7.2617,137.71,137.63,54.0734495]
[1719365305369,0.17,137.72,137.63,8.1292495]
[1719365305554,7.2633,137.68,137.63,0.8634495]
[1719365305950,18.1551,137.71,137.63,0.8634495]
[1719365306147,7.2635,137.68,137.63,0.8634495]
[1719365306963,18.1551,137.71,137.63,8.1292495]
[1719365307862,7.2643,137.66,137.63,0.8634495]
[1719365308665,7.2639,137.67,137.63,0.8634495]
[1719365309363,7.2644,137.66,137.63,0.8634495]
[1719365309669,7.2649,137.65,137.63,0.8634495]
[1719365309975,7.2644,137.66,137.63,0.8634495]
[1719365310669,15.0506,137.7,137.63,0.8634495]
[1719365311171,7.2649,137.65,137.63,0.8634495]
[1719365311954,7.2644,137.66,137.63,0.8634495]
[1719365313380,7.2638,137.67,137.63,0.8634495]
[1719365314078,7.2643,137.66,137.63,0.8634495]
[1719365315772,7.265,137.65,137.63,0.8634495]
[1719365317370,7.2644,137.66,137.63,0.8634495]
[1719365321385,7.2653,137.64,137.63,0.8634495]
[1719365323465,7.57502297,137.71,137.63,27.5034495]
[1719365323677,7.25106944,137.72,137.67,26.64]
[1719365323678,7.2621,137.7,137.67,26.64]
[1719365323868,7.2627,137.69,137.64,7.6052]
[1719365324071,7.25106944,137.72,137.67,26.64]
[1719365324072,7.2623,137.7,137.67,26.64]
[1719365325477,7.2627,137.69,137.67,26.64]
[1719365326360,7.2627,137.69,137.64,7.4352]
[1719365326361,273.3511,137.74,137.68,26.64]
[1719365326568,31.4868,137.76,137.68,26.64]
[1719365326569,15.7692,137.76,137.69,106.56]
[1719365326763,15.7692,137.76,137.72,6.6149]
[1719365327064,255.2,137.78,137.75,26.64]
[1719365327282,7.2575,137.79,137.77,26.64]
[1719365327504,7.2575,137.79,137.78,26.64]
[1719365327686,7.2575,137.79,137.77,26.64]
[1719365328269,34.4799,137.83,137.76,26.64]
[1719365328495,34.4799,137.83,137.74,15.6944]
[1719365328496,7.2588,137.77,137.75,26.64]
[1719365328708,7.25106944,137.83,137.74,15.6944]
[1719365328920,25.36154353,137.86,137.74,15.6944]
[1719365328921,22.78254353,137.86,137.76,18.1465]
[1719365329069,255.2,137.87,137.77,6.463]
[1719365329070,7.2557,137.83,137.77,6.463]
[1719365329267,7.2559,137.82,137.77,13.7213]
[1719365329466,7.2554,137.83,137.77,13.7213]
[1719365330411,7.2546,137.85,137.79,25.4005]
[1719365330573,268.12051206,137.87,137.79,18.1432]
[1719365331371,268.12051206,137.87,137.77,6.463]
[1719365331590,18.1343,137.86,137.77,6.463]
[1719365331793,7.2559,137.82,137.77,6.463]
[1719365332366,7.2563,137.81,137.77,6.463]
[1719365332670,7.2568,137.8,137.77,6.463]
[1719365332883,7.2564,137.81,137.77,6.463]
[1719365333279,7.257,137.8,137.77,6.293]
[1719365333574,7.2574,137.79,137.77,6.293]
[1719365333768,311.9584996,137.87,137.77,6.293]
[1719365333973,7.2565,137.81,137.77,6.293]
[1719365335898,0.17,137.86,137.77,6.293]
[1719365336102,7.2541,137.86,137.8,22.2642]
[1719365336393,262.45106944,137.87,137.77,21.3004]
[1719365336595,7.2579,137.78,137.77,21.3004]
[1719365336785,18.1399,137.82,137.77,21.3004]
[1719365337472,7.2575,137.79,137.77,6.293]
[1719365338192,7.2569,137.8,137.77,6.293]
[1719365338427,7.2565,137.81,137.77,6.293]
[1719365338693,7.2569,137.8,137.77,6.293]
[1719365339586,7.2564,137.81,137.77,6.293]
[1719365340380,7.2563,137.81,137.77,6.293]
[1719365340788,7.2567,137.81,137.77,6.293]
[1719365340979,18.1365,137.85,137.77,6.293]
[1719365341508,7.2572,137.8,137.77,6.293]
[1719365341893,7.2575,137.79,137.77,6.293]
[1719365343296,7.259,137.76,137.74,15.2288]
[1719365343505,51.6769,137.84,137.73,6.3605]
[1719365343506,15.4024,137.84,137.73,6.3605]
[1719365343703,0.17,137.83,137.74,18.1495]
[1719365343884,0.17,137.83,137.73,6.3605]
[1719365344218,18.1401,137.82,137.73,6.3605]
[1719365344582,7.2577,137.79,137.73,13.621]
[1719365344800,18.1429,137.8,137.73,6.3605]
[1719365345084,7.2594,137.76,137.73,6.3605]
[1719365346208,7.2597,137.75,137.73,6.3605]
[1719365346983,0.17,137.83,137.73,6.3605]
[1719365347196,15.4024,137.84,137.73,6.3605]
[1719365347392,7.2564,137.81,137.76,33.778]
[1719365347803,7.2559,137.82,137.76,41.0367]
[1719365348408,7.2555,137.83,137.77,7.2583]
[1719365348583,12.92051206,137.86,137.76,33.778]
[1719365348785,12.92051206,137.86,137.77,0.17]
[1719365348989,7.2556,137.83,137.77,7.4284]
[1719365349202,7.2556,137.83,137.78,6.4497]
[1719365349406,7.2558,137.82,137.78,6.4497]
[1719365350416,7.2565,137.81,137.78,6.4497]
[1719365351797,7.2558,137.82,137.78,6.4497]
[1719365352312,12.92051206,137.86,137.78,6.4497]
[1719365352806,7.2557,137.83,137.78,6.4497]
[1719365354992,7.2554,137.83,137.78,6.4497]
[1719365355213,7.2558,137.82,137.78,6.4497]
[1719365355420,12.92051206,137.86,137.78,6.4497]
[1719365356324,7.2559,137.82,137.78,6.4497]
[1719365356617,12.92051206,137.86,137.78,6.4497]
[1719365356920,7.2556,137.83,137.78,6.4497]
[1719365357689,7.2547,137.85,137.79,7.4272]
[1719365357893,7.2549,137.84,137.79,7.4272]
[1719365358305,7.2549,137.84,137.79,7.4273]
[1719365358490,7.2549,137.84,137.79,0.17]
[1719365359392,18.1336,137.87,137.78,6.4497]
[1719365359616,7.2567,137.81,137.78,6.4497]
[1719365359824,7.257,137.8,137.78,6.4497]
[1719365360492,18.1359,137.85,137.78,6.4497]
[1719365360702,0.17,137.84,137.78,6.4497]
[1719365361110,18.1359,137.85,137.78,6.4497]
[1719365361432,7.2549,137.84,137.78,13.7075]
[1719365361631,7.2549,137.84,137.79,0.17]
[1719365361928,7.2549,137.84,137.79,7.4272]
[1719365362221,7.2543,137.85,137.79,7.4272]
[1719365363217,7.2548,137.84,137.79,7.4272]
[1719365363621,7.2553,137.83,137.79,0.17]
[1719365364219,18.1325,137.88,137.79,0.17]
[1719365364220,7.2544,137.85,137.79,25.57]
[1719365366516,8.06729403,137.91,137.8,15.0888]
[1719365366517,36.1487123,137.9,137.8,15.0888]
[1719365366699,14.82466968,137.9,137.83,13.3303]
[1719365366900,7.2516,137.9,137.85,22.343]
[1719365367306,7.2512,137.91,137.86,7.2535]
[1719365367507,262.4506,137.92,137.86,7.2535]
[1719365367827,255.2,137.92,137.87,18.1327]
[1719365367997,262.4507,137.92,137.87,7.253]
[1719365368317,255.2,137.92,137.88,13.6305]
[1719365368621,255.2,137.92,137.89,0.17]
[1719365368820,7.2496,137.94,137.89,0.34]
[1719365369333,18.1206,137.97,137.89,0.17]
[1719365369510,7.2509,137.92,137.88,6.2079]
[1719365370423,18.1206,137.97,137.88,6.2079]
[1719365370599,7.2509,137.92,137.88,6.2079]
[1719365371418,18.1206,137.97,137.88,6.2079]
[1719365372327,7.2496,137.94,137.88,13.4602]
[1719365372508,7.2496,137.94,137.89,0.17]
[1719365373007,18.1206,137.97,137.88,6.2079]
[1719365373217,7.2509,137.92,137.88,6.2079]
[1719365373806,7.2506,137.92,137.88,6.2079]
[1719365375734,18.1228,137.95,137.88,6.2079]
[1719365375909,7.2511,137.91,137.88,6.2079]
[1719365378030,7.2503,137.93,137.88,13.4605]
[1719365378212,7.2497,137.94,137.88,13.4605]
[1719365379334,18.1195,137.98,137.88,6.2079]
[1719365379335,7.2501,137.93,137.88,6.2079]
[1719365380812,7.2517,137.9,137.88,6.2079]
[1719365381114,7.2512,137.91,137.88,6.2079]
[1719365381618,18.1207,137.97,137.88,6.2079]
[1719365381932,0.17,137.96,137.88,6.2079]
[1719365382228,7.2511,137.91,137.88,6.2079]
[1719365383211,18.1228,137.95,137.88,6.2079]
[1719365383442,7.2514,137.91,137.88,6.2079]
[1719365383737,18.1258,137.93,137.88,6.2079]
[1719365384437,7.2516,137.9,137.88,6.2079]
[1719365385635,7.2521,137.89,137.85,15.0888]
[1719365385935,7.2537,137.86,137.85,15.0888]
[1719365386138,7.2542,137.85,137.84,6.5351]
[1719365386530,7.2549,137.84,137.82,15.3418]
[1719365387030,18.1307,137.89,137.82,15.3418]
[1719365387242,0.17,137.88,137.82,15.3418]
[1719365387648,7.2544,137.85,137.82,15.3418]
[1719365388547,7.2549,137.84,137.82,15.3418]
[1719365388922,7.2543,137.85,137.82,15.3418]
[1719365390050,7.2549,137.84,137.82,15.3418]
[1719365390252,7.2543,137.85,137.82,15.3418]
[1719365391138,7.2538,137.86,137.82,15.3418]
[1719365391341,7.2533,137.87,137.82,15.3418]
[1719365391540,7.2537,137.86,137.82,15.3418]
[1719365392656,0.17,137.88,137.82,15.3418]
[1719365392951,7.2548,137.84,137.82,15.3418]
[1719365393832,7.2553,137.83,137.82,15.3418]
[1719365394652,7.2549,137.84,137.82,15.3418]
[1719365397459,0.17,137.89,137.82,22.5973]
[1719365397643,0.17,137.9,137.82,15.3418]
[1719365397835,7.2537,137.86,137.82,15.3418]
[1719365398036,7.2533,137.87,137.82,22.5975]
[1719365398251,7.2533,137.87,137.83,0.17]
[1719365400259,7.2542,137.85,137.82,15.3418]
[1719365400440,5.66944262,137.91,137.83,7.2551]
[1719365400956,7.2519,137.9,137.85,6.4578]
[1719365401467,7.2522,137.89,137.85,6.4578]
[1719365402147,25.37706944,137.93,137.85,6.4578]
[1719365402341,7.2523,137.89,137.85,6.4578]
[1719365404265,7.2532,137.87,137.85,6.4578]
[1719365404567,7.2532,137.87,137.79,21.7685]
[1719365404568,18.1333,137.87,137.79,21.7685]
[1719365404744,7.256,137.82,137.79,21.7685]
[1719365405258,7.2552,137.84,137.79,21.7685]
[1719365405463,7.2553,137.83,137.79,21.7685]
[1719365405640,0.17,137.86,137.79,6.5673]
[1719365405844,7.2586,137.77,137.75,22.3083]
[1719365406046,18.1406,137.82,137.75,22.3083]
[1719365406770,7.2563,137.81,137.76,7.2589]
[1719365406938,18.3058,137.85,137.77,7.2582]
[1719365407337,7.2557,137.83,137.77,7.2582]
[1719365407537,7.2543,137.85,137.77,18.1456]
[1719365407767,7.2543,137.85,137.78,0.17]
[1719365408147,7.2537,137.86,137.8,7.2568]
[1719365408466,7.2542,137.85,137.79,25.4001]
[1719365408845,7.2549,137.84,137.78,7.4277]
[1719365409466,18.1348,137.86,137.76,71.3265]
[1719365409660,7.2569,137.8,137.75,22.4783]
[1719365409861,7.2576,137.79,137.75,22.3083]
[1719365410072,18.1377,137.84,137.75,22.3083]
[1719365410073,7.2579,137.78,137.75,22.3083]
[1719365410250,7.2575,137.79,137.75,22.3083]
[1719365411049,7.258,137.78,137.75,22.3083]
[1719365412344,7.2574,137.79,137.75,22.3083]
[1719365413266,7.258,137.78,137.75,22.3083]
[1719365414358,7.2575,137.79,137.75,22.3083]
[1719365415065,7.2569,137.8,137.75,22.3083]
[1719365415646,15.8252,137.85,137.75,29.5677]
[1719365415647,7.2564,137.81,137.75,29.5677]
[1719365416148,7.2568,137.8,137.75,29.5677]
[1719365416949,18.1365,137.85,137.75,40.4568]
[1719365417160,7.57428065,137.87,137.76,0.17]
[1719365417361,7.2551,137.84,137.78,7.2575]
[1719365417853,7.2554,137.83,137.78,7.2575]
[1719365419763,7.2554,137.83,137.77,25.4037]
[1719365420272,7.2548,137.84,137.77,18.1455]
[1719365420569,7.2548,137.84,137.79,7.257]
[1719365421872,255.2,137.88,137.8,6.1707]
[1719365422168,7.2533,137.87,137.81,33.3769]
[1719365422972,7.2538,137.86,137.81,33.3769]
[1719365423157,7.2538,137.86,137.81,15.0662]
[1719365423354,7.2543,137.85,137.81,15.0662]
[1719365424361,18.1334,137.87,137.81,15.0662]
[1719365424554,7.2553,137.83,137.81,15.0662]
[1719365425153,7.2549,137.84,137.81,15.0662]
[1719365425556,18.1334,137.87,137.81,15.0662]
[1719365425769,7.2563,137.81,137.77,22.2502]
[1719365425969,18.1389,137.83,137.77,22.2502]
[1719365426357,7.2577,137.79,137.77,22.2502]
[1719365426681,7.2588,137.77,137.74,16.2305]
[1719365427386,7.2581,137.78,137.74,16.2305]
[1719365429059,7.2585,137.77,137.74,16.2305]
[1719365429258,18.1418,137.81,137.74,16.2305]
[1719365429465,7.2581,137.78,137.74,16.2305]
[1719365430372,7.2587,137.77,137.74,16.2305]
[1719365430577,7.2587,137.77,137.73,6.0197]
[1719365430578,7.26,137.74,137.73,6.0197]
[1719365430781,7.26,137.74,137.7,16.1081]
[1719365430962,7.26,137.74,137.7,22.5175]
[1719365431158,18.1464,137.77,137.7,22.5175]
[1719365431465,7.2607,137.73,137.7,22.5175]
[1719365432380,7.2597,137.75,137.7,22.5175]
[1719365432581,18.1464,137.77,137.7,22.5175]
[1719365432784,7.2602,137.74,137.7,22.5175]
[1719365433464,7.2605,137.73,137.7,22.5175]
[1719365433768,100.34,137.78,137.67,6.6001]
[1719365433977,0.17,137.74,137.67,6.6001]
[1719365434178,45.0,137.76,137.67,6.6001]
[1719365434179,7.2632,137.68,137.67,6.6001]
[1719365434354,7.2628,137.69,137.67,6.6001]
[1719365434669,7.2623,137.7,137.67,6.6001]
[1719365436085,7.2617,137.71,137.67,6.6001]
[1719365436270,18.1479,137.76,137.67,6.6001]
[1719365436470,7.2606,137.73,137.67,13.8636]
[1719365438361,7.2606,137.73,137.68,7.2631]
[1719365438568,12.73936347,137.8,137.7,7.262]
[1719365438569,18.1445,137.79,137.7,7.262]
[1719365438773,7.2599,137.75,137.7,18.155]
[1719365438966,7.2602,137.74,137.69,7.4325]
[1719365439399,7.2605,137.73,137.69,0.17]
[1719365439702,7.2605,137.73,137.67,85.2021]
[1719365439876,7.2605,137.73,137.68,20.0]
[1719365440182,7.25106944,137.8,137.71,7.2616]
[1719365440183,7.2594,137.76,137.71,7.2616]
[1719365440565,7.2594,137.76,137.7,18.1543]
[1719365440773,18.1439,137.79,137.71,0.17]
[1719365440982,7.2585,137.77,137.72,7.2609]
[1719365441169,7.2585,137.77,137.71,7.4314]
[1719365441989,7.2581,137.78,137.72,7.2608]
[1719365442186,7.2581,137.78,137.73,7.2605]
[1719365442375,7.2575,137.79,137.74,6.3267]
[1719365442866,18.1403,137.82,137.74,6.3267]
[1719365443268,7.2582,137.78,137.74,6.3267]
[1719365443672,7.2588,137.77,137.74,6.3267]
[1719365444172,7.259,137.76,137.74,6.3267]
[1719365444974,7.2595,137.75,137.74,6.3267]
[1719365445565,7.26,137.74,137.69,47.3691]
[1719365445765,7.26,137.74,137.7,0.17]
[1719365445964,18.1453,137.78,137.69,40.1066]
[1719365445965,7.2606,137.73,137.69,40.1066]
[1719365446184,7.2606,137.73,137.69,39.9366]
[1719365446383,18.1453,137.78,137.69,39.9366]
[1719365446768,7.2594,137.76,137.69,39.9366]
[1719365447397,7.257,137.8,137.74,7.2597]
[1719365447589,7.257,137.8,137.75,7.2594]
[1719365447769,7.2562,137.82,137.76,7.2588]
[1719365448183,7.2562,137.82,137.77,0.17]
[1719365448397,7.2563,137.81,137.77,0.17]
[1719365449863,260.86944262,137.86,137.77,18.4857]
[1719365450065,7.2563,137.82,137.77,18.4857]
[1719365450398,23.80424262,137.86,137.77,0.17]
[1719365450566,7.256,137.82,137.77,0.34]
[1719365450766,23.80424262,137.86,137.77,0.34]
[1719365451997,18.1379,137.84,137.77,0.17]
[1719365452175,7.257,137.8,137.77,0.17]
[1719365452372,7.257,137.8,137.74,47.9299]
[1719365452583,7.257,137.8,137.75,0.34]
[1719365453094,18.1379,137.84,137.75,0.17]
[1719365453594,7.2567,137.81,137.76,7.2588]
[1719365453769,7.257,137.8,137.75,0.17]
[1719365454195,7.2575,137.79,137.75,0.17]
[1719365454374,18.1379,137.84,137.75,0.17]
[1719365454568,18.1379,137.84,137.75,0.34]
[1719365454974,7.2577,137.79,137.75,0.17]
[1719365455689,6.7577,137.79,137.75,0.17]
[1719365455902,7.258,137.78,137.75,0.17]
[1719365456699,7.2576,137.79,137.75,0.17]
[1719365457205,7.2576,137.79,137.74,22.5211]
[1719365457718,7.2576,137.79,137.74,29.781]
[1719365458018,5.66944262,137.86,137.75,0.17]
[1719365458209,7.2555,137.83,137.78,7.2576]
[1719365458577,7.2555,137.83,137.77,25.5739]
[1719365458879,7.2555,137.83,137.78,0.17]
[1719365459192,7.2555,137.83,137.79,21.5438]
[1719365459400,7.2548,137.84,137.8,0.17]
[1719365460083,7.2553,137.83,137.79,21.5438]
[1719365461309,18.1346,137.86,137.79,21.5438]
[1719365461492,18.1371,137.84,137.79,21.5438]
[1719365462915,7.2563,137.81,137.79,21.5438]
[1719365463231,7.2568,137.8,137.79,21.5438]
[1719365466064,7.259,137.76,137.75,21.5641]
[1719365466402,7.2586,137.77,137.75,21.5641]
[1719365467027,7.259,137.76,137.75,21.5641]
[1719365467225,36.2804,137.82,137.7,22.0565]
[1719365467525,7.2606,137.73,137.7,22.0565]
[1719365467725,7.2601,137.74,137.7,22.0565]
[1719365468409,7.2606,137.73,137.7,22.0565]
[1719365469004,7.2606,137.73,137.67,18.1588]
[1719365469005,18.1482,137.76,137.67,6.3385]
[1719365469320,7.2619,137.71,137.67,6.3385]
[1719365469832,7.2625,137.7,137.67,6.3385]
[1719365470142,7.2622,137.7,137.67,6.3385]
[1719365470323,7.2617,137.71,137.67,6.3385]
[1719365471346,7.2622,137.7,137.67,6.3385]
[1719365472506,7.2618,137.71,137.67,6.3385]
[1719365472711,0.17,137.76,137.68,0.17]
[1719365472911,7.2606,137.73,137.68,7.433]
[1719365473435,18.143,137.8,137.69,0.17]
[1719365473638,7.2591,137.76,137.7,7.2621]
[1719365474332,7.2591,137.76,137.71,7.2615]
[1719365474840,7.2591,137.76,137.7,25.4169]
[1719365475048,7.2601,137.74,137.69,0.17]